fUSD/lending_fUSD_20250809
["ID","MTS","AMOUNT","RATE_DAILY","PERIOD"]
[378136920,1754742631852,-500.0,0.00018973,2]
[378136921,1754742631861,-500.0,0.00018973,2]
[378136922,1754742631871,-500.0,0.00018973,2]
[378136923,1754742631880,-500.0,0.00018973,2]
[378136924,1754742631890,-500.0,0.00018999,2]
[378136925,1754742631899,-500.0,0.00018999,2]
[378136926,1754742631909,-142.35645552,0.00018999,2]
[378136927,1754742631921,-357.64354448,0.00018999,2]
[378136928,1754742631931,-242.38364007,0.00018999,2]
[378136929,1754742631941,-499.99999999,0.00018999,2]
[378136930,1754742631951,-3707.95188933,0.00019,2]
[378136931,1754742631962,-67402.42279695,0.00019,2]
[378136932,1754742631983,-3199.33214314,0.00019,2]
[378136933,1754742631995,-600.0,0.00019,2]
[378136934,1754742632025,-38664.50781208,0.00019,2]
[378136935,1754742632036,-2617.59295228,0.00019,2]
[378136937,1754742632054,-626.00194982,0.00019,2]
[378136938,1754742632074,-33245.89125228,0.00019,2]
[378136939,1754742632085,-1794.46130042,0.00019,2]
[378136940,1754742632096,-372.23160495,0.00019,2]
[378136942,1754742632111,-5155.73536567,0.00019,2]
[378136945,1754742632120,-176.66242311,0.00019,2]
[378136948,1754742632131,-640.56144988,0.00019,2]
[378136952,1754742632142,-267.35096317,0.00019,2]
[378136954,1754742632153,-1699.3357618,0.00019,2]
[378136960,1754742637560,-1173.3722,0.00019,2]
[378136961,1754742637572,-1002.70919104,0.00019,2]
[378136962,1754742637617,-1767.7227972,0.00019,2]
[378136963,1754742637746,-358.13751701,0.00019,2]
[378136964,1754742637756,-11007.97837211,0.00019,2]
[378136965,1754742637861,-1220.76588454,0.00019,2]
[378137101,1754742639642,-3917.25996076,0.00019,2]
[378137114,1754742639753,-631380.1505973,0.00019,2]
[378137116,1754742639764,-35193.97848231,0.00019,2]
[378137118,1754742639776,-1000.0,0.00019521,2]
[378137120,1754742639786,-1928.29602099,0.00019803,2]
[378137122,1754742639796,-216.47083806,0.000199,2]
[378137124,1754742639808,-1500.0,0.00020068,2]
[378137127,1754742639820,-180.09,0.00020187,2]
[378137129,1754742639831,-306.01,0.00020519,2]
[378137131,1754742639843,-250.0,0.00020558,2]
[378137133,1754742639855,-2000.0,0.00020616,2]
[378137136,1754742639867,-300.0,0.00020668,2]
[378137138,1754742639879,-300.0,0.00020668,2]
[378137140,1754742639891,-1680.0,0.00020702,2]
[378137142,1754742639902,-1928.29602099,0.00020705,2]
[378137145,1754742639913,-541.99401438,0.00021112,2]
[378137147,1754742639925,-2500.0,0.00021164,2]
[378137149,1754742639935,-247.17538333,0.00021186,2]
[378137151,1754742639945,-553.84728294,0.000213,2]
[378137153,1754742639955,-298.25,0.000214,2]
[378137155,1754742639966,-165.62176329,0.00021567,2]
[378137157,1754742639978,-1928.29602099,0.00021608,2]
[378137160,1754742639989,-3000.0,0.00021712,2]
[378137162,1754742640000,-192.0,0.00021784,2]
[378137164,1754742640012,-4322.47,0.00021918,2]
[378137166,1754742640024,-22027.81,0.00021934,2]
[378137169,1754742640035,-162.82,0.00021958,2]
[378137171,1754742640047,-250.0,0.00022144,2]
[378137173,1754742640059,-151.83,0.0002215,2]
[378137175,1754742640073,-170.0,0.00022163,7]
[378137178,1754742640085,-306.01,0.0002225,2]
[378137180,1754742640097,-3500.0,0.0002226,2]
[378137182,1754742640108,-200.0,0.00022444,2]
[378137184,1754742640121,-500.0,0.00022444,2]
[378137186,1754742640132,-361.46757612,0.00022444,2]
[378137189,1754742640146,-6075.0,0.00022458,2]
[378137191,1754742640157,-4141.0,0.00022458,2]
[378137193,1754742640170,-1227.26244712,0.00022458,2]
[378137196,1754742640186,-11492.66505555,0.00022458,2]
[378137199,1754742640204,-2892.90206681,0.00022458,2]
[378137202,1754742640218,-5825.17043052,0.00022458,2]
[378137204,1754742640229,-163.65,0.00022478,2]
[378137206,1754742640239,-1928.29602099,0.0002251,2]
[378137208,1754742640251,-158.3,0.00022618,2]
[378137210,1754742640264,-1120.0,0.00022677,2]
[378137213,1754742640283,-4709.90488935,0.00022688,2]
[378137215,1754742640294,-509.0,0.00022698,2]
[378137217,1754742640305,-173.95,0.00022716,2]
[378137219,1754742640316,-166.22,0.00022778,2]
[378137221,1754742640326,-4000.0,0.00022808,2]
[378137224,1754742640337,-200.0,0.0002293,2]
[378137226,1754742640347,-183.57,0.00022935,2]
[378137228,1754742640357,-1000.0,0.00022938,2]
[378137230,1754742640367,-158.3,0.00023003,2]
[378137232,1754742640378,-2751.0,0.00023098,2]
[378137234,1754742640389,-375.10536518,0.00023151,2]
[378137236,1754742640401,-4500.0,0.00023356,2]
[378137239,1754742640414,-158.3,0.00023387,2]
[378137241,1754742640427,-1928.29602099,0.00023413,2]
[378137243,1754742640436,-500.0,0.00023456,2]
[378137245,1754742640447,-247.17538333,0.00023471,2]
[378137247,1754742640457,-184.67,0.00023519,2]
[378137249,1754742640466,-296.0,0.000236,2]
[378137251,1754742640476,-184.67,0.00023636,2]
[378137254,1754742640487,-218.44074308,0.00023664,2]
[378137256,1754742640498,-416.03518578,0.00023745,2]
[378137258,1754742640510,-4662.51281194,0.00023745,2]
[378137260,1754742640522,-160.0,0.00023745,2]
[378137262,1754742640534,-239.84119403,0.00023745,2]
[378137265,1754742640544,-300.0,0.00023745,2]
[378137267,1754742640554,-184.67,0.00023754,2]
[378137269,1754742640564,-158.3,0.00023772,2]
[378137271,1754742640574,-4835.02578598,0.000238,2]
[378137273,1754742640584,-500.0,0.00023835,2]
[378137275,1754742640594,-500.0,0.00023835,2]
[378137277,1754742640606,-796.99,0.00023836,2]
[378137280,1754742640622,-467.7,0.00023836,2]
[378137282,1754742640633,-796.99,0.00023836,2]
[378137284,1754742640643,-796.99,0.00023836,2]
[378137286,1754742640653,-154.3,0.00023836,2]
[378137288,1754742640663,-796.99,0.00023841,2]
[378137290,1754742640674,-467.7,0.00023841,2]
[378137292,1754742640684,-4581.59466564,0.00023904,2]
[378137294,1754742640694,-306.01,0.0002398,2]
[378137296,1754742640705,-152.0,0.00023994,3]
[378137298,1754742640716,-5000.00923391,0.00024,5]
[378137301,1754742640726,-508.29500152,0.00024001,30]
[378137303,1754742640736,-929.06740369,0.00024001,30]
[378137305,1754742640747,-504.88040161,0.00024001,30]
[378137307,1754742640758,-500.0,0.00024001,30]
[378137309,1754742640768,-4000.0,0.00024011,4]
[378137311,1754742640779,-158.3,0.00024157,2]
[378137313,1754742640791,-165.62176329,0.00024233,2]
[378137315,1754742640802,-1928.29602099,0.00024315,2]
[378137318,1754742640813,-340.89,0.00024384,2]
[378137320,1754742640823,-472.38,0.00024384,2]
[378137322,1754742640833,-238.0,0.000244,120]
[378137324,1754742640844,-158.3,0.00024541,2]
[378137326,1754742640856,-1000.0,0.00024557,2]
[378137328,1754742640867,-5000.0,0.00024557,2]
[378137330,1754742640880,-1000.0,0.00024557,2]
[378137332,1754742640893,-2500.0,0.00024557,2]
[378137335,1754742640903,-322.89624257,0.00024647,2]
[378137337,1754742640914,-840.72809519,0.00024657,2]
[378137339,1754742640925,-400.0,0.00024657,2]
[378137341,1754742640935,-546.95335409,0.00024657,2]
[378137343,1754742640945,-400.0,0.00024657,2]
[378137345,1754742640956,-400.0,0.00024657,2]
[378137347,1754742640966,-400.0,0.00024657,2]
[378137349,1754742640977,-400.0,0.00024657,2]
[378137352,1754742640988,-481.26,0.00024657,2]
[378137354,1754742640999,-500.0,0.00024657,2]
[378137356,1754742641009,-500.0,0.00024657,2]
[378137358,1754742641020,-400.0,0.00024657,2]
[378137360,1754742641031,-400.0,0.00024657,2]
[378137362,1754742641041,-400.0,0.00024657,2]
[378137365,1754742641053,-400.0,0.00024657,2]
[378137367,1754742641063,-400.0,0.00024657,2]
[378137369,1754742641078,-401.18411574,0.00024657,2]
[378137371,1754742641088,-400.0,0.00024657,2]
[378137373,1754742641099,-400.0,0.00024657,2]
[378137375,1754742641110,-400.0,0.00024657,2]
[378137378,1754742641122,-400.0,0.00024657,2]
[378137380,1754742641132,-174.72425051,0.00024657,2]
[378137391,1754742641566,-225.27574949,0.00024657,2]
[378137392,1754742641577,-400.0,0.00024657,2]
[378137393,1754742641588,-400.0,0.00024657,2]
[378137394,1754742641598,-400.0,0.00024657,2]
[378137395,1754742641609,-430.22,0.00024657,2]
[378137396,1754742641619,-400.0,0.00024657,2]
[378137397,1754742641629,-400.0,0.00024657,2]
[378137398,1754742641639,-400.0,0.00024657,2]
[378137400,1754742641650,-420.67,0.00024657,2]
[378137402,1754742641661,-400.0,0.00024657,2]
[378137405,1754742641673,-299.73676261,0.00024657,2]
[378137407,1754742641683,-400.0,0.00024657,2]
[378137409,1754742641694,-400.0,0.00024657,2]
[378137411,1754742641704,-400.0,0.00024657,2]
[378137413,1754742641714,-152.27997637,0.00024657,2]
[378137415,1754742641724,-400.0,0.00024657,2]
[378137417,1754742641734,-400.0,0.00024657,2]
[378137419,1754742641745,-400.0,0.00024657,2]
[378137421,1754742641755,-400.0,0.00024657,2]
[378137423,1754742641765,-400.0,0.00024657,2]
[378137425,1754742641775,-400.0,0.00024657,2]
[378137427,1754742641786,-400.0,0.00024657,2]
[378137429,1754742641796,-400.0,0.00024657,2]
[378137431,1754742641806,-400.0,0.00024657,2]
[378137434,1754742641816,-400.0,0.00024657,2]
[378137436,1754742641826,-400.0,0.00024657,2]
[378137438,1754742641836,-400.0,0.00024657,2]
[378137440,1754742641847,-400.0,0.00024657,2]
[378137442,1754742641858,-400.0,0.00024657,2]
[378137444,1754742641869,-400.0,0.00024657,2]
[378137446,1754742641879,-400.0,0.00024657,2]
[378137448,1754742641889,-400.0,0.00024657,2]
[378137450,1754742641900,-302.72891148,0.00024657,2]
[378137454,1754742641929,-97.27108852,0.00024657,2]
[378137456,1754742641939,-400.0,0.00024657,2]
[378137459,1754742641949,-400.0,0.00024657,2]
[378137461,1754742641960,-400.0,0.00024657,2]
[378137463,1754742641971,-400.0,0.00024657,2]
[378137465,1754742641981,-400.0,0.00024657,2]
[378137467,1754742641991,-400.0,0.00024657,2]
[378137469,1754742642003,-400.0,0.00024657,2]
[378137471,1754742642013,-400.0,0.00024657,2]
[378137473,1754742642023,-400.0,0.00024657,2]
[378137475,1754742642033,-400.0,0.00024657,2]
[378137478,1754742642044,-400.0,0.00024657,2]
[378137480,1754742642055,-400.0,0.00024657,2]
[378137482,1754742642069,-400.0,0.00024657,2]
[378137484,1754742642080,-476.29375118,0.00024657,2]
[378137486,1754742642091,-400.0,0.00024657,2]
[378137488,1754742642102,-400.0,0.00024657,2]
[378137490,1754742642112,-400.0,0.00024657,2]
[378137492,1754742642123,-400.0,0.00024657,2]
[378137494,1754742642132,-400.0,0.00024657,2]
[378137496,1754742642142,-400.0,0.00024657,2]
[378137499,1754742642155,-400.0,0.00024657,2]
[378137501,1754742642165,-400.0,0.00024657,2]
[378137503,1754742642174,-343.41812547,0.00024657,2]
[378137505,1754742642186,-400.0,0.00024657,2]
[378137507,1754742642197,-400.0,0.00024657,2]
[378137509,1754742642207,-400.0,0.00024657,2]
[378137511,1754742642217,-400.0,0.00024657,2]
[378137513,1754742642227,-540.88,0.00024657,2]
[378137515,1754742642239,-400.0,0.00024657,2]
[378137517,1754742642250,-400.0,0.00024657,2]
[378137519,1754742642260,-400.0,0.00024657,2]
[378137521,1754742642270,-400.0,0.00024657,2]
[378137524,1754742642281,-400.0,0.00024657,2]
[378137526,1754742642291,-400.0,0.00024657,2]
[378137528,1754742642301,-400.0,0.00024657,2]
[378137530,1754742642311,-400.0,0.00024657,2]
[378137532,1754742642322,-400.0,0.00024657,2]
[378137534,1754742642332,-197.93327402,0.00024657,2]
[378137536,1754742642342,-400.0,0.00024657,2]
[378137538,1754742642352,-400.0,0.00024657,2]
[378137540,1754742642362,-400.0,0.00024657,2]
[378137542,1754742642372,-400.0,0.00024657,2]
[378137545,1754742642382,-400.0,0.00024657,2]
[378137547,1754742642392,-400.0,0.00024657,2]
[378137549,1754742642402,-189.66431982,0.00024657,2]
[378137551,1754742642412,-400.0,0.00024657,2]
[378137552,1754742642423,-343.14954908,0.00024657,2]
[378137553,1754742642433,-400.0,0.00024657,2]
[378137554,1754742642443,-400.0,0.00024657,2]
[378137556,1754742642454,-400.0,0.00024657,2]
[378137559,1754742642464,-400.0,0.00024657,2]
[378137560,1754742642474,-400.0,0.00024657,2]
[378137562,1754742642485,-400.0,0.00024657,2]
[378137563,1754742642495,-400.0,0.00024657,2]
[378137564,1754742642506,-400.0,0.00024657,2]
[378137566,1754742642516,-400.0,0.00024657,2]
[378137568,1754742642526,-400.0,0.00024657,2]
[378137571,1754742642536,-400.0,0.00024657,2]
[378137573,1754742642547,-400.0,0.00024657,2]
[378137575,1754742642557,-474.46,0.00024657,2]
[378137577,1754742642567,-400.0,0.00024657,2]
[378137579,1754742642577,-400.0,0.00024657,2]
[378137581,1754742642588,-400.0,0.00024657,2]
[378137584,1754742642599,-400.0,0.00024657,2]
[378137586,1754742642610,-400.0,0.00024657,2]
[378137588,1754742642620,-400.0,0.00024657,2]
[378137590,1754742642631,-400.0,0.00024657,2]
[378137592,1754742642641,-370.56,0.00024657,2]
[378137596,1754742642652,-400.0,0.00024657,2]
[378137598,1754742642662,-400.0,0.00024657,2]
[378137600,1754742642673,-400.0,0.00024657,2]
[378137602,1754742642684,-500.0,0.00024657,2]
[378137605,1754742642696,-400.0,0.00024657,2]
[378137607,1754742642706,-544.36,0.00024657,2]
[378137609,1754742642717,-400.0,0.00024657,2]
[378137611,1754742642728,-400.0,0.00024657,2]
[378137613,1754742642739,-400.0,0.00024657,2]
[378137615,1754742642749,-400.0,0.00024657,2]
[378137617,1754742642760,-400.0,0.00024657,2]
[378137619,1754742642771,-400.0,0.00024657,2]
[378137621,1754742642781,-400.0,0.00024657,2]
[378137623,1754742642792,-400.0,0.00024657,2]
[378137625,1754742642802,-400.0,0.00024657,2]
[378137627,1754742642812,-207.38006238,0.00024657,2]
[378137690,1754742643384,-400.0,0.00024657,2]
[378137693,1754742643408,-297.84,0.00024657,2]
[378137697,1754742643435,-400.0,0.00024657,2]
[378137700,1754742643457,-420.43,0.00024657,2]
[378137702,1754742643468,-400.0,0.00024657,2]
[378137704,1754742643478,-400.0,0.00024657,2]
[378137706,1754742643487,-400.0,0.00024657,2]
[378137708,1754742643496,-400.0,0.00024657,2]
[378137710,1754742643506,-400.0,0.00024657,2]
[378137712,1754742643516,-400.0,0.00024657,2]
[378137714,1754742643525,-400.0,0.00024657,2]
[378137716,1754742643535,-400.0,0.00024657,2]
[378137718,1754742643545,-500.0,0.00024657,2]
[378137720,1754742643555,-500.0,0.00024657,2]
[378137722,1754742643564,-400.0,0.00024657,2]
[378137724,1754742643574,-400.0,0.00024657,2]
[378137726,1754742643584,-402.31768884,0.00024657,2]
[378137728,1754742643594,-400.0,0.00024657,2]
[378137730,1754742643603,-548.37,0.00024657,2]
[378137732,1754742643613,-400.0,0.00024657,2]
[378137734,1754742643622,-400.0,0.00024657,2]
[378137736,1754742643632,-188.64553956,0.00024657,2]
[378137738,1754742643641,-400.0,0.00024657,2]
[378137740,1754742643651,-400.0,0.00024657,2]
[378137743,1754742643661,-400.0,0.00024657,2]
[378137744,1754742643672,-400.0,0.00024657,2]
[378137747,1754742643682,-416.94,0.00024657,2]
[378137749,1754742643691,-527.86,0.00024657,2]
[378137750,1754742643701,-400.0,0.00024657,2]
[378137753,1754742643711,-400.0,0.00024657,2]
[378137755,1754742643720,-400.0,0.00024657,2]
[378137756,1754742643730,-400.0,0.00024657,2]
[378137759,1754742643740,-400.0,0.00024657,2]
[378137761,1754742643751,-400.0,0.00024657,2]
[378137763,1754742643760,-400.0,0.00024657,2]
[378137765,1754742643770,-400.0,0.00024657,2]
[378137767,1754742643780,-400.0,0.00024657,2]
[378137769,1754742643790,-400.0,0.00024657,2]
[378137771,1754742643799,-400.0,0.00024657,2]
[378137773,1754742643809,-400.0,0.00024657,2]
[378137775,1754742643819,-400.0,0.00024657,2]
[378137777,1754742643830,-400.0,0.00024657,2]
[378137779,1754742643839,-521.84,0.00024657,2]
[378137781,1754742643848,-400.0,0.00024657,2]
[378137783,1754742643858,-400.0,0.00024657,2]
[378137785,1754742643867,-400.0,0.00024657,2]
[378137787,1754742643879,-400.0,0.00024657,2]
[378137789,1754742643888,-400.0,0.00024657,2]
[378137791,1754742643898,-400.0,0.00024657,2]
[378137793,1754742643907,-400.0,0.00024657,2]
[378137795,1754742643917,-400.0,0.00024657,2]
[378137797,1754742643927,-400.0,0.00024657,2]
[378137799,1754742643936,-33.35387117,0.00024657,2]
[378137844,1754742644362,-362.76485203,0.00020021,3]
[378137846,1754742644373,-464.76347741,0.00020021,3]
[378137848,1754742644384,-60.47167056,0.00020021,3]
[378137851,1754742644394,-246.326443,0.00022261,3]
[378137854,1754742644412,-1529.673557,0.00022261,3]
[378137855,1754742644423,-366.64612883,0.00024657,2]
[378137858,1754742644433,-400.0,0.00024657,2]
[378137860,1754742644442,-400.0,0.00024657,2]
[378137862,1754742644452,-400.0,0.00024657,2]
[378137864,1754742644463,-400.0,0.00024657,2]
[378137866,1754742644472,-400.0,0.00024657,2]
[378137868,1754742644481,-400.0,0.00024657,2]
[378137870,1754742644491,-400.0,0.00024657,2]
[378137872,1754742644500,-400.0,0.00024657,2]
[378137873,1754742644509,-400.0,0.00024657,2]
[378137875,1754742644519,-303.66052169,0.00024657,2]
[378137877,1754742644529,-400.0,0.00024657,2]
[378137880,1754742644538,-400.0,0.00024657,2]
[378137882,1754742644547,-400.0,0.00024657,2]
[378137884,1754742644557,-252.01045976,0.00024657,2]
[378137886,1754742644569,-147.98954024,0.00024657,2]
[378137888,1754742644582,-400.0,0.00024657,2]
[378137890,1754742644591,-79.53045974,0.00024657,2]
[378137998,1754742645651,-533.39791256,0.00019,2]
[378138020,1754742645854,-163.48518744,0.00019,2]
[378138023,1754742645864,-696.8831,0.00019,2]
[378138025,1754742645874,-696.8831,0.00019,2]
[378138027,1754742645883,-888.0,0.00024656,3]
[378138029,1754742645893,-382.99954026,0.00024657,2]
[378138031,1754742645903,-400.0,0.00024657,2]
[378138033,1754742645912,-400.0,0.00024657,2]
[378138035,1754742645921,-400.0,0.00024657,2]
[378138037,1754742645931,-294.71836419,0.00024657,2]
[378138039,1754742645945,-400.0,0.00024657,2]
[378138041,1754742645955,-400.0,0.00024657,2]
[378138043,1754742645965,-400.0,0.00024657,2]
[378138045,1754742645975,-400.0,0.00024657,2]
[378138047,1754742645984,-492.55,0.00024657,2]
[378138050,1754742645995,-400.0,0.00024657,2]
[378138052,1754742646004,-400.0,0.00024657,2]
[378138054,1754742646014,-400.0,0.00024657,2]
[378138056,1754742646024,-400.0,0.00024657,2]
[378138058,1754742646034,-400.0,0.00024657,2]
[378138060,1754742646044,-400.0,0.00024657,2]
[378138062,1754742646064,-672.32,0.00024657,2]
[378138064,1754742646078,-401.84,0.00024657,2]
[378138066,1754742646087,-400.0,0.00024657,2]
[378138068,1754742646097,-483.19,0.00024657,2]
[378138070,1754742646107,-400.0,0.00024657,2]
[378138072,1754742646117,-516.65420211,0.00024657,2]
[378138075,1754742646142,-20.62579789,0.00024657,2]
[378138086,1754742646230,-400.0,0.00024657,2]
[378138088,1754742646240,-889.77,0.00024657,2]
[378138089,1754742646249,-400.0,0.00024657,2]
[378138091,1754742646258,-400.0,0.00024657,2]
[378138094,1754742646268,-400.0,0.00024657,2]
[378138095,1754742646277,-400.0,0.00024657,2]
[378138098,1754742646287,-400.0,0.00024657,2]
[378138099,1754742646299,-400.0,0.00024657,2]
[378138101,1754742646308,-135.95772211,0.00024657,2]
[378138104,1754742646320,-264.04227789,0.00024657,2]
[378138106,1754742646329,-400.0,0.00024657,2]
[378138108,1754742646338,-400.0,0.00024657,2]
[378138110,1754742646347,-400.0,0.00024657,2]
[378138112,1754742646356,-157.34,0.00024657,2]
[378138114,1754742646365,-400.0,0.00024657,2]
[378138116,1754742646374,-400.0,0.00024657,2]
[378138117,1754742646384,-179.31772231,0.00024657,2]
[378138901,1754742679780,52.62961754,0.00013699,2]
[378138902,1754742679801,109.45038246,0.00013699,2]
[378138913,1754743034255,164.66,0.00018,2]
[378138916,1754743197666,268.62,0.00017706,2]
[378138928,1754743596023,153.97,0.00013699,2]
[378138973,1754743832208,-268.62,0.00019436,2]
[378138974,1754743832219,-903.551,0.00020187,2]
[378138995,1754743837791,-378.36330588,0.00019936,3]
[378138997,1754743837803,-509.63669412,0.00019936,3]
[378138999,1754743837813,-1800.76330588,0.00020187,2]
[378139003,1754743837905,-769.87422603,0.00020187,2]
[378139055,1754743839918,-251.859,0.00020187,2]
[378139056,1754743839977,-469.55,0.00020187,2]
[378139057,1754743840036,-673.58545407,0.00020187,2]
[378139058,1754743840046,-83.37693306,0.00020187,2]
[378139064,1754743842841,-70.59306694,0.00020187,2]
[378139065,1754743842851,-778.55866661,0.00020436,3]
[378139071,1754743846103,-888.0,0.00020186,3]
[378139072,1754743846115,-109.44133339,0.00020436,3]
[378139073,1754743846124,-888.0,0.00020687,3]
[378139074,1754743846133,-424.01377193,0.00020892,2]
[378139075,1754743846180,-84.98622807,0.00020892,2]
[378139076,1754743846190,-301.87,0.00020949,2]
[378139077,1754743846199,-305.86,0.00020949,2]
[378139078,1754743846209,-301.22,0.00021016,2]
[378139079,1754743846218,-268.62,0.00021166,2]
[378139080,1754743846229,-118.4466058,0.000215,2]
[378139081,1754743846246,-149.9733942,0.000215,2]
[378139082,1754743846256,-1776.0,0.00022176,3]
[378139083,1754743846266,-412.42,0.00022315,2]
[378139084,1754743846277,-124.6269447,0.00022414,2]
[378139106,1754743867227,-675.0,0.00024685,30]
[378139110,1754744151673,265.64,0.00017032,2]
[378139171,1754744865715,513.0,0.00017892,2]
[378139173,1754744882946,352.98125283,0.00018005,2]
[378139183,1754745032074,-265.64,0.00018762,2]
[378139184,1754745032085,-1106.91,0.0002,2]
[378139185,1754745032095,-798.8100868,0.0002,3]
[378139186,1754745032104,-2000.0,0.0002,14]
[378139187,1754745032114,-265.64,0.00020493,2]
[378139188,1754745032124,-154.0,0.000205,2]
[378139189,1754745032133,-513.0,0.00020524,5]
[378139190,1754745032142,-300.0,0.00020638,2]
[378139191,1754745032153,-150.0,0.0002168,2]
[378139192,1754745032162,-142.49139829,0.000217,2]
[378139193,1754745032174,-99.08860171,0.000217,2]
[378139194,1754745032183,-329.93,0.00021781,2]
[378139195,1754745032193,-180.96,0.00022055,3]
[378139196,1754745032203,-250.0,0.00022121,2]
[378139197,1754745032212,-151.83,0.00022138,2]
[378139198,1754745032222,-2284.0,0.0002215,2]
[378139199,1754745032231,-1200.0,0.00022159,2]
[378139200,1754745032241,-2085.85,0.0002216,2]
[378139201,1754745032251,-200.0,0.00022166,2]
[378139202,1754745032262,-150.0,0.00022167,2]
[378139203,1754745032272,-150.0,0.00022167,2]
[378139204,1754745032284,-150.0,0.00022167,2]
[378139205,1754745032294,-150.0,0.00022167,2]
[378139206,1754745032304,-150.0,0.00022167,2]
[378139207,1754745032314,-150.0,0.00022167,2]
[378139208,1754745032324,-150.0,0.00022167,2]
[378139209,1754745032334,-150.0,0.00022167,2]
[378139210,1754745032345,-150.0,0.00022167,2]
[378139211,1754745032356,-150.0,0.00022167,2]
[378139212,1754745032365,-150.0,0.00022167,2]
[378139213,1754745032376,-150.0,0.00022167,2]
[378139214,1754745032387,-150.0,0.00022167,2]
[378139215,1754745032397,-265.64,0.00022223,2]
[378139216,1754745032407,-7275.26813957,0.00022267,2]
[378139217,1754745032444,-11319.20020499,0.00022267,2]
[378139218,1754745032456,-1663.045,0.00022267,2]
[378139220,1754745032468,-502.48580365,0.00022267,2]
[378139234,1754745032594,-415.80500019,0.00022267,2]
[378139238,1754745032618,-11643.99999999,0.00022267,2]
[378139507,1754745035546,4200.0,0.00017,10]
[378139738,1754745037954,-476.97391464,0.000205,3]
[378139762,1754745038172,-411.02608536,0.000205,3]
[378139764,1754745038182,-2433.93391464,0.00022267,2]
[378139769,1754745038229,-339.96588828,0.00021,3]
[378139944,1754745040014,-548.03411172,0.00021,3]
[378139946,1754745040024,-3653.59025182,0.00022267,2]
[378139953,1754745040081,-1.12263173,0.00022267,2]
[378139970,1754745040234,-478.93569088,0.00022267,2]
[378139972,1754745040246,-372.34049029,0.00022267,2]
[378139978,1754745040294,-468.07001462,0.000215,3]
[378140254,1754745043029,-419.92998538,0.000215,3]
[378140257,1754745043040,-4461.00906565,0.00022267,2]
[378140259,1754745043052,-14166.78074924,0.00022267,2]
[378140263,1754745043085,-3408.36492524,0.00022267,2]
[378140307,1754745043491,-888.0,0.00022,3]
[378140309,1754745043501,-27544.11564153,0.00022267,2]
[378140564,1754745046229,-282.10639796,0.00022267,2]
[378140565,1754745046241,-911.4999996,0.00022267,2]
[378140566,1754745046287,-1527.68964843,0.00022267,2]
[378140568,1754745046299,-32309.62701055,0.00022267,2]
[378140570,1754745046308,-5452.92712982,0.00022267,2]
[378140572,1754745046317,-5000.0,0.00022268,2]
[378140573,1754745046327,-170.0,0.00022279,7]
[378140574,1754745046337,-1000.0,0.00022291,2]
[378140575,1754745046346,-500.0,0.000223,2]
[378140576,1754745046356,-216.47083805,0.000223,2]
[378140577,1754745046366,-353.22,0.00022303,2]
[378140578,1754745046375,-500.0,0.000224,2]
[378140579,1754745046384,-361.46757612,0.000224,2]
[378140580,1754745046394,-200.0,0.000224,2]
[378140581,1754745046403,-151.0,0.00022414,2]